bitfinex/quotes_SOLUSD_20250514
["timestamp","ask_amount","ask_price","bid_price","bid_amount"]
[1747184651859,34.84814663,182.71,182.65,205.0]
[1747184651860,19.15603961,182.71,182.65,205.0]
[1747184652059,15.69210702,182.69,182.65,205.0]
[1747184652258,19.15603961,182.71,182.65,205.0]
[1747184652491,5.47315417,182.71,182.66,26.0]
[1747184652786,5.47315417,182.71,182.69,15.69210702]
[1747184653766,5.47225566,182.74,182.69,15.69210702]
[1747184653987,19.15289481,182.74,182.65,205.0]
[1747184654169,19.29505638,182.74,182.65,205.0]
[1747184654376,15.69210702,182.68,182.64,22.04]
[1747184655097,15.69210702,182.66,182.64,22.04]
[1747184655276,15.69210702,182.65,182.58,22.02]
[1747184655600,15.69210702,182.65,182.59,15.69210702]
[1747184655968,15.69210702,182.64,182.58,22.02]
[1747184656198,15.69210702,182.64,182.59,15.69210702]
[1747184656400,15.69210702,182.64,182.55,1.5923]
[1747184656401,15.69210702,182.61,182.52,6.6466]
[1747184656571,15.69210702,182.6,182.55,22.02]
[1747184656771,15.69210702,182.6,182.55,37.71210702]
[1747184656996,15.69210702,182.61,182.55,37.71210702]
[1747184657698,21.16855827,182.6,182.55,37.71210702]
[1747184657902,15.69210702,182.59,182.55,22.02]
[1747184658078,15.69210702,182.56,182.49,37.71210702]
[1747184658396,15.69210702,182.55,182.5,15.69210702]
[1747184658897,0.14216157,182.58,182.5,15.69210702]
[1747184659197,15.69210702,182.55,182.49,22.02]
[1747184659596,21.17095865,182.52,182.49,22.02]
[1747184659804,5.47885163,182.52,182.49,22.02]
[1747184660096,21.17095865,182.52,182.49,22.02]
[1747184660296,15.69210702,182.5,182.49,22.02]
[1747184660501,5.47885163,182.52,182.45,15.69210702]
[1747184660701,15.69210702,182.5,182.43,48.02]
[1747184660998,5.47885163,182.52,182.43,37.71210702]
[1747184660999,19.17598071,182.52,182.43,37.71210702]
[1747184661217,19.17598071,182.52,182.44,15.69210702]
[1747184661375,15.69210702,182.49,182.42,22.02]
[1747184661569,19.17598071,182.52,182.44,15.69210702]
[1747184661570,5.4800526,182.48,182.44,15.69210702]
[1747184661991,21.17215962,182.48,182.42,22.02]
[1747184662205,15.69210702,182.43,182.37,8.21470311]
[1747184662414,15.69210702,182.41,182.36,22.02]
[1747184662584,15.69210702,182.4,182.36,22.02]
[1747184662781,15.69210702,182.38,182.36,22.02]
[1747184663002,15.69210702,182.37,182.3,22.04]
[1747184663307,15.69210702,182.37,182.31,15.69210702]
[1747184663604,5.48245614,182.4,182.35,15.69210702]
[1747184663907,5.48245614,182.4,182.34,15.69210702]
[1747184664088,5.48245614,182.4,182.31,26.0]
[1747184664283,5.48245614,182.4,182.35,15.69210702]
[1747184664587,21.17396207,182.42,182.36,15.69210702]
[1747184664896,5.48185505,182.42,182.36,15.69210702]
[1747184665094,21.17396207,182.42,182.36,15.69210702]
[1747184665291,5.48185505,182.42,182.38,15.69210702]
[1747184665498,15.69210702,182.4,182.35,15.69210702]
[1747184665798,15.69210702,182.37,182.31,15.69210702]
[1747184666032,15.69210702,182.36,182.31,15.69210702]
[1747184666313,15.69210702,182.37,182.32,15.69210702]
[1747184667006,15.69210702,182.38,182.33,15.69210702]
[1747184667211,15.69210702,182.38,182.32,15.69210702]
[1747184667506,15.69210702,182.36,182.3,37.73210702]
[1747184667687,5.48395941,182.35,182.3,37.73210702]
[1747184668024,5.48395941,182.35,182.31,15.69210702]
[1747184668487,15.69210702,182.32,182.23,7.9975]
[1747184668688,15.69210702,182.29,182.23,22.04]
[1747184668912,15.69210702,182.28,182.23,37.73210702]
[1747184669101,15.69210702,182.28,182.23,22.04]
[1747184669307,15.69210702,182.28,182.23,37.73210702]
[1747184669696,5.48636637,182.27,182.23,37.73210702]
[1747184670122,5.48516263,182.31,182.24,15.69210702]
[1747184670320,21.17726965,182.31,182.23,22.04]
[1747184670626,15.69210702,182.3,182.23,22.04]
[1747184670822,15.69210702,182.28,182.23,22.04]
[1747184671022,15.69210702,182.29,182.23,37.73210702]
[1747184671211,5.48516263,182.31,182.28,15.69210702]
[1747184671524,5.48516263,182.31,182.23,48.04]
[1747184671525,15.69210702,182.3,182.23,48.04]
[1747184671724,5.48606539,182.28,182.23,48.04]
[1747184671899,5.48606539,182.28,182.23,63.73210702]
[1747184672098,5.48606539,182.28,182.24,15.69210702]
[1747184672320,21.17726965,182.31,182.26,15.69210702]
[1747184672511,5.48516263,182.31,182.28,15.69210702]
[1747184672712,5.48365869,182.36,182.3,15.69210702]
[1747184672919,5.48365869,182.36,182.32,15.69210702]
[1747184673200,21.17576571,182.36,182.3,37.75210702]
[1747184673609,21.17576571,182.36,182.31,15.69210702]
[1747184673610,5.48365869,182.36,182.31,15.69210702]
[1747184674130,21.17576571,182.36,182.31,15.69210702]
[1747184674329,21.17576571,182.36,182.3,22.06]
[1747184674632,15.69210702,182.31,182.23,22.06]
[1747184674929,16.09210702,182.3,182.24,15.69210702]
[1747184675125,15.69210702,182.28,182.23,22.06]
[1747184675329,15.69210702,182.29,182.23,37.75210702]
[1747184675922,26.28432314,182.33,182.23,37.75210702]
[1747184675923,15.69210702,182.24,182.23,22.06]
[1747184676093,15.69210702,182.24,182.17,37.75210702]
[1747184676294,15.69210702,182.24,182.18,15.69210702]
[1747184676731,15.69210702,182.23,182.18,15.69210702]
[1747184677429,26.0,182.27,182.2,15.69210702]
[1747184677724,21.17877441,182.26,182.2,15.69210702]
[1747184678223,15.69210702,182.25,182.2,15.69210702]
[1747184678726,15.69210702,182.24,182.18,15.69210702]
[1747184678903,19.20333588,182.26,182.18,15.69210702]
[1747184679106,15.69210702,182.21,182.17,22.06]
[1747184679298,0.28432314,182.25,182.17,22.06]
[1747184679633,15.69210702,182.22,182.17,37.75210702]
[1747184679824,5.48817298,182.21,182.17,37.75210702]
[1747184680227,5.48817298,182.21,182.17,22.06]
[1747184680535,5.48817298,182.21,182.17,37.75210702]
[1747184680736,15.69210702,182.19,182.17,22.06]
[1747184680908,15.69210702,182.2,182.15,15.69210702]
[1747184681101,5.48817298,182.21,182.19,15.69210702]
[1747184681729,5.48817298,182.21,182.14,26.0]
[1747184681904,25.90684058,182.28,182.2,15.69210702]
[1747184681905,5.48757065,182.23,182.2,15.69210702]
[1747184682230,5.48666739,182.26,182.22,15.69210702]
[1747184682533,5.48666739,182.26,182.23,15.69210702]
[1747184682710,5.48666739,182.26,182.18,22.86]
[1747184683030,15.69210702,182.25,182.18,22.86]
[1747184683205,15.69210702,182.23,182.18,22.86]
[1747184683410,15.69210702,182.22,182.18,22.86]
[1747184683625,15.69210702,182.23,182.18,38.55210702]
[1747184684011,21.17967767,182.23,182.18,38.55210702]
[1747184685636,15.69210702,182.19,182.12,22.86]
[1747184685925,15.69210702,182.15,182.12,22.86]
[1747184686346,15.69210702,182.14,182.12,22.86]
[1747184686634,15.69210702,182.13,182.07,8.30387307]
[1747184686808,15.69210702,182.13,182.01,6.0949]
[1747184686809,15.69210702,182.08,182.01,15.69210702]
[1747184687010,15.69210702,182.06,182.01,15.69210702]
[1747184687235,15.69210702,182.07,182.01,15.69210702]
[1747184687434,0.14216157,182.09,182.02,15.69210702]
[1747184687613,0.14216157,182.09,181.97,22.86]
[1747184687614,15.69210702,182.07,181.97,22.86]
[1747184687947,15.69210702,182.07,182.02,15.69210702]
[1747184688312,0.14216157,182.12,182.05,15.69210702]
[1747184688621,0.14216157,182.2,182.11,15.69210702]
[1747184688818,41.69210702,182.18,182.12,15.69210702]
[1747184689131,41.69210702,182.18,182.13,15.69210702]
[1747184689337,15.69210702,182.17,182.12,15.69210702]
[1747184689629,26.0,182.18,182.13,15.69210702]
[1747184689828,15.69210702,182.19,182.13,15.69210702]
[1747184690037,5.4884742,182.2,182.14,15.69210702]
[1747184690221,5.4884742,182.2,182.1,26.0]
[1747184690419,5.4884742,182.2,182.16,15.69210702]
[1747184690934,15.69210702,182.17,182.12,15.69210702]
[1747184691312,15.69210702,182.17,182.1,26.0]
[1747184691527,5.4896794,182.16,182.1,26.0]
[1747184691741,5.4896794,182.16,182.13,15.69210702]
[1747184692132,5.48927355,182.18,182.14,15.69210702]
[1747184692739,5.48927355,182.18,182.15,15.69210702]
[1747184693338,5.48927355,182.18,182.14,15.69210702]
[1747184693545,5.48927355,182.18,182.13,15.69210702]
[1747184694340,5.48757065,182.23,182.17,15.69210702]
[1747184694539,15.69210702,182.18,182.13,22.88]
[1747184694835,15.69210702,182.17,182.13,22.88]
[1747184695033,0.14216157,182.2,182.14,15.69210702]
[1747184695213,15.83426859,182.2,182.14,15.69210702]
[1747184695409,0.14216157,182.22,182.17,15.69210702]
[1747184695723,0.28432314,182.22,182.13,38.57210702]
[1747184695940,15.69210702,182.21,182.15,15.69210702]
[1747184696109,5.48757065,182.23,182.13,22.88]
[1747184696310,5.48757065,182.23,182.2,15.69210702]
[1747184696535,15.69210702,182.27,182.21,15.69210702]
[1747184696841,19.20122887,182.28,182.21,15.69210702]
[1747184697010,19.20122887,182.28,182.22,15.69210702]
[1747184697323,5.48546352,182.3,182.27,15.69210702]
[1747184697722,20.25876059,182.34,182.21,22.88]
[1747184697723,5.48456096,182.33,182.29,15.69210702]
[1747184698109,21.17666798,182.33,182.24,26.0]
[1747184698330,21.17666798,182.33,182.28,15.69210702]
[1747184698649,5.48456096,182.33,182.29,15.69210702]
[1747184698816,37.26779755,182.38,182.31,15.69210702]
[1747184699135,39.99212069,182.38,182.31,15.69210702]
[1747184699338,5.483358,182.37,182.34,15.69210702]
[1747184699525,63.38547706,182.41,182.34,15.69210702]
[1747184699724,21.17456316,182.4,182.35,15.69210702]
[1747184700036,21.17456316,182.4,182.28,49.00216157]
[1747184700037,5.48245614,182.4,182.34,15.69210702]
[1747184700235,5.48245614,182.4,182.29,0.14216157]
[1747184700236,5.48215558,182.41,182.37,15.69210702]
[1747184700443,5.48125411,182.44,182.4,15.69210702]
[1747184700625,5.48035293,182.47,182.43,15.69210702]
[1747184700940,5.47945205,182.5,182.45,15.69210702]
[1747184701160,15.69210702,182.48,182.39,26.0]
[1747184701317,15.69210702,182.41,182.34,0.14216157]
[1747184701640,46.57534245,182.5,182.3,23.72]
[1747184701641,26.0,182.4,182.3,23.72]
[1747184701812,26.0,182.4,182.3,39.41210702]
[1747184701813,15.69210702,182.36,182.3,39.41210702]
[1747184702017,26.0,182.4,182.31,15.69210702]
[1747184702233,0.28432314,182.42,182.32,15.69210702]
[1747184702234,26.28432314,182.42,182.32,15.69210702]
[1747184702436,0.28432314,182.4,182.3,23.72]
[1747184702639,19.18754453,182.41,182.32,15.69210702]
[1747184702937,19.18754453,182.41,182.3,49.72]
[1747184703110,15.69210702,182.36,182.3,39.41210702]
[1747184703315,15.69210702,182.34,182.3,23.72]
[1747184703514,0.14216157,182.39,182.32,15.69210702]
[1747184703847,5.48215558,182.41,182.38,15.69210702]
[1747184704014,5.48215558,182.41,182.37,15.69210702]
[1747184704217,34.87965155,182.41,182.33,26.0]
[1747184704416,15.69210702,182.38,182.33,15.69210702]
[1747184704614,5.48275673,182.39,182.35,15.69210702]
[1747184704836,5.48185505,182.42,182.38,15.69210702]
[1747184705340,5.48035293,182.47,182.41,15.69210702]
[1747184705545,15.69210702,182.45,182.37,26.0]
[1747184705838,72.58299993,182.47,182.38,15.69210702]
[1747184706042,19.18123526,182.47,182.42,15.69210702]
[1747184706242,5.48035293,182.47,182.45,15.69210702]
[1747184706445,34.87025041,182.5,182.45,15.69210702]
[1747184706939,0.4,182.49,182.45,15.69210702]
[1747184707360,5.47945205,182.5,182.48,15.69210702]
[1747184707568,23.66330702,182.61,182.43,15.69210702]
[1747184707569,19.16757939,182.6,182.49,15.69210702]
[1747184707752,15.69210702,182.58,182.48,0.14216157]
[1747184708066,15.69210702,182.54,182.47,23.7]
[1747184708263,15.69210702,182.48,182.4,0.14216157]
[1747184708474,15.69210702,182.48,182.4,15.69210702]
[1747184708475,19.18018412,182.48,182.4,15.69210702]
[1747184708635,15.69210702,182.45,182.4,15.69210702]
[1747184708840,5.4800526,182.48,182.44,15.69210702]
[1747184709051,15.69210702,182.46,182.4,26.0]
[1747184709251,19.18018412,182.48,182.4,26.0]
[1747184709252,15.69210702,182.47,182.41,15.69210702]
[1747184710057,26.0,182.41,182.28,1.6032]
[1747184710235,15.69210702,182.33,182.28,15.69210702]
[1747184710563,5.48516263,182.31,182.26,8.4458307]
[1747184710861,21.17726965,182.31,182.26,8.4458307]
[1747184711381,34.89017623,182.31,182.26,8.4458307]
[1747184711532,15.69210702,182.27,182.26,8.4458307]
[1747184711964,15.69210702,182.29,182.26,8.4458307]
[1747184712259,15.69210702,182.28,182.26,8.4458307]
[1747184712445,5.48636637,182.27,182.26,8.4458307]
[1747184712764,21.32063496,182.27,182.26,8.4458307]
[1747184713060,21.46279653,182.27,182.19,24.68]
[1747184713242,5.48636637,182.27,182.19,24.68]
[1747184713562,15.69210702,182.24,182.19,40.37210702]
[1747184714144,5.48636637,182.27,182.23,15.69210702]
[1747184714352,5.48607233,182.28,182.24,15.69210702]
[1747184714537,5.48607233,182.28,182.2,0.14216157]
[1747184714538,21.17817935,182.28,182.23,15.69210702]
[1747184714738,5.48607233,182.28,182.23,15.69210702]
[1747184714944,15.69210702,182.26,182.19,24.68]
[1747184715288,0.28432314,182.27,182.19,24.68]
[1747184715498,15.69210702,182.24,182.19,24.68]
[1747184715770,0.28432314,182.27,182.19,24.68]
[1747184715939,15.69210702,182.24,182.19,24.68]
[1747184716144,15.97643016,182.25,182.13,58.08367769]
[1747184716393,15.69210702,182.18,182.13,33.36367769]
[1747184716555,15.69210702,182.17,182.13,24.7]
[1747184716884,15.69210702,182.15,182.13,24.7]
[1747184717043,5.48907673,182.18,182.08,15.69210702]
[1747184717250,15.69210702,182.14,182.07,230.86]
[1747184717458,15.69210702,182.12,182.07,25.58]
[1747184717649,0.28432314,182.15,182.07,25.58]
[1747184717863,0.28432314,182.17,182.08,15.69210702]
[1747184718046,0.28432314,182.17,182.09,15.69210702]
[1747184718277,5.48907673,182.18,182.1,15.69210702]
[1747184718457,15.69210702,182.17,182.12,15.69210702]
[1747184718944,15.69210702,182.18,182.13,15.69210702]
[1747184719152,15.69210702,182.19,182.14,15.69210702]
[1747184719551,15.69210702,182.19,182.13,15.69210702]
[1747184719753,31.48820704,182.21,182.14,15.69210702]
[1747184719965,15.69210702,182.19,182.08,5.63410136]
[1747184720158,15.69210702,182.18,182.13,15.69210702]
[1747184720452,15.69210702,182.14,182.02,11.8528245]
[1747184720753,0.28432314,182.14,182.04,15.69210702]
[1747184720973,15.69210702,182.09,182.04,15.69210702]
[1747184721176,15.69210702,182.1,182.05,15.69210702]
[1747184721470,0.28432314,182.14,182.05,15.69210702]
[1747184721644,26.0,182.13,182.05,15.69210702]
[1747184721849,15.69210702,182.14,182.09,15.69210702]
[1747184722158,5.49058364,182.13,182.08,15.69210702]
[1747184722362,5.49058364,182.13,182.04,31.49327791]
[1747184722363,5.49058364,182.13,182.09,15.69210702]
[1747184722564,20.14630921,182.15,182.09,15.69210702]
[1747184722745,5.48966532,182.17,182.12,15.69210702]
[1747184722950,5.4878718,182.22,182.16,15.69210702]
[1747184723149,5.4878718,182.22,182.18,15.69210702]
[1747184723362,21.17997882,182.22,182.16,15.69210702]
[1747184723581,45.2075513,182.22,182.14,15.69210702]
[1747184723778,15.69210702,182.19,182.1,26.76]
[1747184723977,15.69210702,182.19,182.1,42.45210702]
[1747184723978,15.69210702,182.16,182.1,42.45210702]
[1747184724184,5.48996391,182.16,182.11,15.69210702]
[1747184724361,5.48996391,182.16,182.12,15.69210702]
[1747184725179,15.69210702,182.18,182.1,52.76]
[1747184725353,0.14216157,182.21,182.13,15.69210702]
[1747184725554,26.0,182.22,182.16,15.69210702]
[1747184725878,41.69210702,182.22,182.16,15.69210702]
[1747184726173,5.48817298,182.21,182.16,15.69210702]
[1747184726478,21.18028,182.21,182.11,5.63331278]
[1747184726664,15.69210702,182.2,182.15,15.69210702]
[1747184727174,5.48788098,182.22,182.17,15.69210702]
[1747184727478,21.179988,182.22,182.16,15.69210702]
[1747184727853,5.48788098,182.22,182.19,15.69210702]
[1747184728054,5.48788098,182.22,182.18,15.69210702]
[1747184728250,5.48757065,182.23,182.18,15.69210702]
[1747184728554,5.48757065,182.23,182.13,5.49031122]
[1747184728750,19.20649728,182.23,182.16,15.69210702]
[1747184728955,15.69210702,182.22,182.16,15.69210702]
[1747184729460,15.69210702,182.22,182.17,15.69210702]
[1747184729979,5.48757065,182.23,182.19,15.69210702]
[1747184730178,26.0,182.24,182.14,0.14216157]
[1747184730179,31.4872848,182.24,182.2,15.69210702]
[1747184730374,15.69210702,182.23,182.17,15.69210702]
[1747184730767,15.69210702,182.2,182.15,15.69210702]
[1747184731154,15.69210702,182.21,182.15,15.69210702]
[1747184731357,15.69210702,182.23,182.13,26.14216157]
[1747184731558,5.4872848,182.24,182.18,15.69210702]
[1747184731756,21.17939182,182.24,182.13,26.14216157]
[1747184731959,21.17939182,182.24,182.18,15.69210702]
[1747184732365,21.17939182,182.24,182.13,26.14216157]
[1747184732573,15.69210702,182.23,182.18,15.69210702]
[1747184733062,15.69210702,182.19,182.1,26.76]
[1747184733278,26.28432314,182.21,182.1,26.76]
[1747184733279,15.69210702,182.16,182.11,15.69210702]
[1747184733663,15.69210702,182.15,182.1,26.76]
[1747184733866,5.4902822,182.14,182.1,26.76]
[1747184734265,15.69210702,182.13,182.1,26.76]
[1747184734872,21.18238922,182.14,182.1,26.76]
[1747184735599,15.69210702,182.11,182.05,26.28]
[1747184735772,5.49269471,182.06,182.03,26.76]
[1747184735974,5.49269471,182.06,182.03,42.45210702]
[1747184736284,26.0,182.12,182.05,15.69210702]
[1747184736483,39.86644041,182.16,182.1,15.69210702]
[1747184736685,15.69210702,182.14,182.08,15.69210702]
[1747184736990,15.69210702,182.13,182.07,15.69210702]
[1747184737191,15.69210702,182.13,182.08,15.69210702]
[1747184737390,15.69210702,182.13,182.04,0.14216157]
[1747184737591,39.72427884,182.16,182.08,15.69210702]
[1747184737883,39.72427884,182.16,182.05,5.49299642]
[1747184737884,5.48937805,182.17,182.07,15.69210702]
[1747184738208,21.18148507,182.17,182.12,15.69210702]
[1747184738498,5.48937805,182.17,182.12,15.69210702]
[1747184739985,5.48877545,182.19,182.15,15.69210702]
[1747184740183,5.48726953,182.24,182.16,15.69210702]
[1747184740380,5.48726953,182.24,182.19,15.69210702]
[1747184740589,5.48636637,182.27,182.21,15.69210702]
[1747184740773,21.17847339,182.27,182.21,15.69210702]
[1747184741285,21.17847339,182.27,182.2,15.69210702]
[1747184741286,15.69210702,182.25,182.2,15.69210702]
[1747184741671,15.69210702,182.23,182.12,5.49088513]
[1747184741877,15.69210702,182.21,182.16,15.69210702]
[1747184742094,15.69210702,182.21,182.15,15.69210702]
[1747184742893,5.48757065,182.23,182.16,15.69210702]
[1747184743111,5.48757065,182.23,182.2,15.69210702]
[1747184743272,0.14216157,182.28,182.22,15.69210702]
[1747184743273,5.48606539,182.28,182.22,15.69210702]
[1747184743475,5.48606539,182.28,182.26,15.69210702]
[1747184743666,26.0,182.32,182.26,15.69210702]
[1747184743868,41.69210702,182.32,182.26,15.69210702]
[1747184744070,5.48516263,182.31,182.27,15.69210702]
[1747184744292,21.17636719,182.34,182.22,0.28432314]
[1747184744483,15.69210702,182.33,182.28,15.69210702]
[1747184744782,5.48486178,182.32,182.28,15.69210702]
[1747184745205,5.48426017,182.34,182.31,15.69210702]
[1747184745489,5.48245614,182.4,182.33,15.69210702]
[1747184745710,5.48245614,182.4,182.36,15.69210702]
[1747184745996,5.48185505,182.42,182.34,15.69210702]
[1747184746297,5.48185505,182.42,182.39,15.69210702]
[1747184746698,5.48185505,182.42,182.33,0.14216157]
[1747184747010,5.48185505,182.42,182.38,15.69210702]
[1747184748087,5.48185505,182.42,182.4,15.69210702]
[1747184748406,5.48185505,182.42,182.35,31.48393212]
[1747184748407,5.48185505,182.42,182.38,15.69210702]
[1747184748584,5.48185505,182.42,182.37,42.45210702]
[1747184749107,19.18649269,182.42,182.32,6.2681]
[1747184749308,19.18649269,182.42,182.23,1.6301]
[1747184749309,15.69210702,182.39,182.33,15.69210702]
[1747184749601,15.69210702,182.41,182.36,15.69210702]
[1747184750474,5.48245614,182.4,182.37,15.69210702]
[1747184750675,19.18859649,182.4,182.35,15.69210702]
[1747184751202,15.69210702,182.39,182.33,15.69210702]
[1747184751377,15.69210702,182.37,182.32,15.69210702]
[1747184751583,15.69210702,182.37,182.31,15.69210702]
[1747184751790,15.69210702,182.38,182.33,15.69210702]
[1747184752099,15.69210702,182.39,182.33,15.69210702]
[1747184752304,15.69210702,182.38,182.33,15.69210702]
[1747184752613,26.0,182.44,182.36,15.69210702]
[1747184752614,5.483358,182.37,182.36,15.69210702]
[1747184753502,53.23395744,182.53,182.36,15.69210702]
[1747184753503,19.1855577,182.43,182.36,15.69210702]
[1747184753805,46.59333054,182.43,182.34,15.69210702]
[1747184754007,15.69210702,182.38,182.32,67.33210702]
[1747184754213,0.4,182.37,182.33,15.69210702]
[1747184754597,5.48365869,182.36,182.34,15.69210702]
[1747184754782,0.4,182.37,182.35,15.69210702]
[1747184754978,0.4,182.37,182.32,57.12478261]
[1747184754979,5.48244196,182.41,182.37,26.0]
[1747184755200,19.18456605,182.44,182.4,15.69210702]
[1747184755383,19.18456605,182.44,182.41,15.69210702]
[1747184756208,5.48125411,182.44,182.43,15.69210702]
[1747184756407,5.48125411,182.44,182.38,0.14216157]
[1747184756606,13.70056389,182.48,182.43,15.69210702]
[1747184756607,5.48035293,182.47,182.43,15.69210702]
[1747184756785,5.48035293,182.47,182.4,26.0]
[1747184756981,5.48035293,182.47,182.44,15.69210702]
[1747184757681,15.69210702,182.45,182.34,1.649]
[1747184757897,15.69210702,182.39,182.32,26.92]
[1747184758094,0.14216157,182.45,182.32,26.92]
[1747184758095,19.18649269,182.42,182.33,15.69210702]
[1747184758298,15.69210702,182.39,182.34,15.69210702]
[1747184758496,15.69210702,182.37,182.32,26.92]
[1747184758712,15.69210702,182.37,182.32,42.61210702]
[1747184758903,15.69210702,182.37,182.32,26.92]
[1747184759109,15.69210702,182.36,182.32,26.92]
[1747184759305,19.18649269,182.42,182.35,15.69210702]
[1747184759608,15.69210702,182.4,182.34,15.69210702]
[1747184759815,15.69210702,182.4,182.35,15.69210702]
[1747184759994,15.69210702,182.41,182.35,15.69210702]
[1747184760182,13.70463764,182.42,182.35,15.69210702]
[1747184760385,15.69210702,182.41,182.35,15.69210702]
[1747184760588,15.69210702,182.4,182.34,15.69210702]
[1747184760815,15.69210702,182.4,182.35,15.69210702]
[1747184760998,15.69210702,182.4,182.32,26.92]
[1747184761313,15.69210702,182.34,182.26,238.7355]
[1747184761611,15.69210702,182.39,182.33,15.69210702]
[1747184761793,5.48125411,182.44,182.38,15.69210702]
[1747184761997,15.69210702,182.42,182.34,26.92]
[1747184762198,15.69210702,182.43,182.37,15.69210702]
[1747184762798,15.69210702,182.42,182.37,15.69210702]
[1747184763116,15.69210702,182.4,182.34,42.61210702]
[1747184763521,15.69210702,182.37,182.34,26.92]
[1747184763825,0.14216157,182.4,182.31,27.62]
[1747184763826,15.69210702,182.36,182.31,15.69210702]
[1747184764312,15.69210702,182.36,182.27,26.92]
[1747184764313,15.69210702,182.35,182.29,15.69210702]
[1747184764513,15.69210702,182.34,182.27,26.92]
[1747184764699,19.19280543,182.36,182.28,15.69210702]
[1747184764898,19.19280543,182.36,182.31,15.69210702]
[1747184764899,34.88491245,182.36,182.31,15.69210702]
[1747184765611,15.69210702,182.35,182.27,26.92]
[1747184765814,19.19280543,182.36,182.23,15.69210702]
[1747184765815,15.69210702,182.28,182.23,15.69210702]
[1747184766017,15.69210702,182.28,182.22,26.92]
[1747184766214,15.69210702,182.28,182.23,15.69210702]
[1747184766416,5.48636637,182.27,182.23,15.69210702]
[1747184766597,5.48636637,182.27,182.24,15.69210702]
[1747184767129,5.48636637,182.27,182.22,26.92]
[1747184767336,15.69210702,182.26,182.22,26.92]
[1747184767498,15.69210702,182.25,182.22,26.92]
[1747184768396,5.48726953,182.24,182.22,26.92]
[1747184768587,5.48726953,182.24,182.16,6.1587]
[1747184768588,15.69210702,182.23,182.16,26.92]
[1747184768790,15.69210702,182.21,182.16,26.92]
[1747184769588,15.69210702,182.21,182.16,42.61210702]
[1747184770117,5.4884742,182.2,182.16,42.61210702]
[1747184770529,5.48757065,182.23,182.16,42.61210702]
[1747184770728,5.48606539,182.28,182.22,15.69210702]
[1747184771191,5.48606539,182.28,182.23,15.69210702]
[1747184771612,5.48606539,182.28,182.17,26.0]
[1747184771791,15.69210702,182.24,182.17,26.0]
[1747184771988,15.69210702,182.24,182.18,15.69210702]
[1747184772310,15.69210702,182.24,182.16,26.92]
[1747184772311,15.69210702,182.22,182.16,26.92]
[1747184772515,15.69210702,182.21,182.16,42.61210702]
[1747184772712,5.48757065,182.23,182.16,42.61210702]
[1747184773025,5.48722194,182.25,182.22,15.69210702]
[1747184773319,5.48606539,182.28,182.24,15.69210702]
[1747184773822,5.48606539,182.28,182.17,26.0]
[1747184773823,15.69210702,182.26,182.21,15.69210702]
[1747184774332,5.48696324,182.26,182.17,53.08]
[1747184774624,15.69210702,182.24,182.19,15.69210702]
[1747184774788,15.69210702,182.25,182.2,15.69210702]
[1747184775223,19.20363173,182.26,182.2,15.69210702]
[1747184775522,15.69210702,182.25,182.2,15.69210702]
[1747184775718,19.20363173,182.26,182.17,53.08]
[1747184775902,15.69210702,182.22,182.17,15.69210702]
[1747184776105,5.48877545,182.19,182.16,26.92]
[1747184777927,5.48701236,182.25,182.18,41.69210702]
[1747184778103,19.19943439,182.3,182.24,15.69210702]
[1747184778319,2.70621809,182.37,182.29,15.69210702]
[1747184778646,0.4,182.4,182.28,26.0]
[1747184778647,15.69210702,182.36,182.3,15.69210702]
[1747184778821,15.69210702,182.34,182.29,15.69210702]
[1747184779017,15.69210702,182.32,182.25,26.88]
[1747184779241,15.69210702,182.32,182.26,15.69210702]
[1747184779398,0.4,182.38,182.31,15.69210702]
[1747184779604,15.69210702,182.33,182.27,15.69210702]
[1747184780322,0.28432314,182.36,182.25,26.88]
[1747184780323,5.48486178,182.32,182.28,15.69210702]
[1747184781204,13.71086144,182.34,182.29,15.69210702]
[1747184781205,5.48453264,182.34,182.29,15.69210702]
[1747184781411,5.48365869,182.36,182.32,15.69210702]
[1747184781599,15.69210702,182.34,182.29,15.69210702]
[1747184782007,15.69210702,182.32,182.25,26.88]
[1747184782333,5.48546352,182.3,182.26,15.69210702]
[1747184782530,21.17606643,182.35,182.29,15.69210702]
[1747184782833,5.48395941,182.35,182.3,15.69210702]
[1747184783529,15.69210702,182.35,182.3,15.69210702]
[1747184783832,15.69210702,182.31,182.24,26.94]
[1747184784036,15.69210702,182.25,182.18,26.9]
[1747184784329,15.69210702,182.2,182.12,6.2165]
[1747184784533,0.28432314,182.23,182.15,15.69210702]
[1747184784717,15.69210702,182.2,182.15,15.69210702]
[1747184784924,0.28432314,182.23,182.15,15.69210702]
[1747184785126,0.4,182.24,182.21,15.69210702]
[1747184785312,15.69210702,182.27,182.22,15.69210702]
[1747184785636,15.69210702,182.27,182.16,15.69210702]